bitfinex-derivatives/quotes_BTCF0:USTF0_20240824
["timestamp","ask_amount","ask_price","bid_price","bid_amount"]
[1724515019213,0.00223451,63976.0,63975.0,0.66596952]
[1724515019822,0.00223451,63976.0,63975.0,0.66596872]
[1724515022623,0.00223451,63976.0,63975.0,0.67939006]
[1724515023332,0.00223451,63976.0,63975.0,0.7730118]
[1724515023528,0.00223451,63976.0,63975.0,0.77301486]
[1724515023722,0.00223451,63976.0,63975.0,0.67939006]
[1724515024026,0.00223451,63976.0,63975.0,0.67916006]
[1724515024922,0.00223451,63976.0,63975.0,0.80501051]
[1724515025437,0.00223451,63976.0,63975.0,0.88313051]
[1724515025726,0.00223451,63976.0,63975.0,1.75157545]
[1724515026424,0.00223451,63976.0,63975.0,1.99428164]
[1724515026625,0.00223451,63976.0,63975.0,2.09194737]
[1724515026925,0.00223451,63976.0,63975.0,1.95857868]
[1724515027138,0.078096,63994.0,63975.0,1.95857868]
[1724515027139,0.04663462,64000.0,63976.0,0.078117]
[1724515027427,0.04667409,64001.0,63999.0,0.8116]
[1724515027628,0.09197409,64002.0,63999.0,0.88969]
[1724515028232,0.0453,64002.0,63999.0,0.7216]
[1724515028535,0.0453,64002.0,64001.0,0.06238713]
[1724515028829,0.0453,64002.0,64001.0,4e-05]
[1724515029024,0.0453,64002.0,64001.0,0.06238713]
[1724515029330,0.0453,64002.0,64001.0,4e-05]
[1724515029532,0.0453,64002.0,64001.0,0.06238713]
[1724515029728,0.0453,64002.0,64001.0,0.09004]
[1724515030524,0.0453,64002.0,64001.0,0.168128]
[1724515030725,0.0453,64002.0,64001.0,0.12484403]
[1724515030932,0.0453,64002.0,64001.0,0.21484403]
[1724515031131,0.0453,64002.0,64001.0,0.4417393]
[1724515031322,0.0453,64002.0,64001.0,0.83245783]
[1724515031522,0.0453,64002.0,64001.0,0.75379738]
[1724515031723,0.0453,64002.0,64001.0,0.36286847]
[1724515031931,0.0453,64002.0,64001.0,1.15379738]
[1724515032124,0.00023451,64007.0,64006.0,0.078082]
[1724515032323,0.00023451,64007.0,64006.0,0.528882]
[1724515032527,0.00023451,64007.0,64006.0,0.438882]
[1724515032924,0.00023451,64007.0,64006.0,0.438922]
[1724515033424,0.00023451,64007.0,64006.0,0.48554676]
[1724515033623,0.00023451,64007.0,64006.0,0.438922]
[1724515033932,0.00323451,64007.0,64006.0,0.438922]
[1724515034526,0.00523451,64007.0,64006.0,0.438922]
[1724515038425,0.00523451,64007.0,64006.0,1.385724]
[1724515038632,0.00523451,64007.0,64006.0,0.985724]
[1724515039030,0.00523451,64007.0,64006.0,0.438922]
[1724515047637,0.00523451,64007.0,64006.0,0.799722]
[1724515048441,0.00523451,64007.0,64006.0,0.84632254]
[1724515049644,0.00523451,64007.0,64006.0,0.799722]
[1724515053440,0.00523451,64007.0,64006.0,0.84635722]
[1724515054339,0.00523451,64007.0,64006.0,0.799722]
[1724515056041,0.00523451,64007.0,64006.0,0.36084]
[1724515056742,0.06741225,64007.0,64006.0,4e-05]
[1724515056941,0.08331451,64007.0,64006.0,4e-05]
[1724515058637,0.08331451,64007.0,64006.0,0.04682614]
[1724515058944,0.08331451,64007.0,64006.0,4e-05]
[1724515060748,0.08331451,64007.0,64006.0,0.04682687]
[1724515061544,0.08331451,64007.0,64006.0,4e-05]
[1724515061943,0.08331451,64007.0,64006.0,0.04682482]
[1724515064348,0.12996296,64007.0,64006.0,0.04681347]
[1724515064857,0.12996118,64007.0,64006.0,0.04681347]
[1724515065042,0.08331451,64007.0,64006.0,0.04681347]
[1724515065244,0.12996116,64007.0,64006.0,0.04681347]
[1724515065448,0.08331451,64007.0,64006.0,4e-05]
[1724515066448,0.08331451,64007.0,64006.0,0.09004]
[1724515067044,0.08354451,64007.0,64006.0,0.09004]
[1724515068148,0.08354451,64007.0,64006.0,0.45084]
[1724515068445,0.08354451,64007.0,64006.0,4e-05]
[1724515068645,0.14572225,64007.0,64006.0,0.04680675]
[1724515068846,0.14572225,64007.0,64006.0,4e-05]
[1724515070443,0.08354451,64007.0,64006.0,4e-05]
[1724515070643,0.14572225,64007.0,64006.0,4e-05]
[1724515071152,0.08354451,64007.0,64006.0,4e-05]
[1724515071352,0.14572225,64007.0,64006.0,4e-05]
[1724515071650,0.14572225,64007.0,64006.0,0.04680675]
[1724515071651,0.08354451,64007.0,64006.0,0.04680675]
[1724515071851,0.08354451,64007.0,64006.0,4e-05]
[1724515073246,0.16162451,64007.0,64006.0,4e-05]
[1724515074044,0.22380225,64007.0,64006.0,4e-05]
[1724515075251,0.16162451,64007.0,64006.0,4e-05]
[1724515076145,0.20826528,64007.0,64006.0,4e-05]
[1724515076352,0.16162451,64007.0,64006.0,4e-05]
[1724515078551,0.22380225,64007.0,64006.0,4e-05]
[1724515078753,0.16162451,64007.0,64006.0,4e-05]
[1724515078945,0.22383577,64007.0,64006.0,4e-05]
[1724515079553,0.16162451,64007.0,64006.0,4e-05]
[1724515079954,0.22384541,64007.0,64006.0,4e-05]
[1724515080953,0.08354451,64007.0,64006.0,0.04680675]
[1724515081558,0.08354451,64007.0,64006.0,4e-05]
[1724515081757,0.08354451,64007.0,64006.0,0.04680675]
[1724515081952,0.1457942,64007.0,64006.0,4e-05]
[1724515082456,0.08354451,64007.0,64006.0,4e-05]
[1724515084862,0.14581878,64007.0,64006.0,0.06236741]
[1724515085158,0.14581878,64007.0,64006.0,4e-05]
[1724515085159,0.08354451,64007.0,64006.0,4e-05]
[1724515085760,0.08354451,64007.0,64006.0,0.06247801]
[1724515085958,0.14583352,64007.0,64006.0,4e-05]
[1724515087058,0.06775352,64007.0,64006.0,0.09004]
[1724515087262,0.00546451,64007.0,64006.0,0.09004]
[1724515087763,0.05217562,64007.0,64006.0,0.09004]
[1724515087954,0.05217562,64007.0,64006.0,0.33366556]
[1724515087955,0.00546451,64007.0,64006.0,0.33366556]
[1724515088259,0.00546451,64007.0,64006.0,0.33395761]
[1724515090653,0.09546451,64007.0,64006.0,0.125422]
[1724515091154,0.14217562,64007.0,64006.0,0.125422]
[1724515091861,0.14217562,64007.0,64006.0,0.18783202]
[1724515092163,0.96418451,64007.0,64006.0,0.06241052]
[1724515092375,0.96418451,64007.0,64003.0,0.04681132]
[1724515092658,0.96418451,64007.0,64000.0,0.06241052]
[1724515092659,0.078088,64001.0,64000.0,0.04681132]
[1724515092859,1.948088,64001.0,63998.0,0.06241052]
[1724515093063,1.948088,64001.0,64000.0,0.04681031]
[1724515093064,0.078088,64001.0,64000.0,0.04681031]
[1724515093566,0.078088,64001.0,64000.0,0.04680481]
[1724515093958,0.078088,64001.0,63997.0,0.06241052]
[1724515093959,0.15222271,64001.0,63997.0,0.06241052]
[1724515094169,0.078094,63996.0,63995.0,0.06241052]
[1724515094365,0.078094,63996.0,63994.0,0.00023451]
[1724515094366,0.168094,63996.0,63994.0,0.00023451]
[1724515095169,4e-05,63995.0,63994.0,0.00023451]
[1724515095764,4e-05,63995.0,63994.0,0.00823451]
[1724515096155,0.04667307,63995.0,63994.0,0.00023451]
[1724515096361,0.04667307,63995.0,63994.0,0.05501211]
[1724515096866,4e-05,63995.0,63994.0,0.06401211]
[1724515097362,0.04667307,63995.0,63994.0,0.01723451]
[1724515098466,4e-05,63995.0,63994.0,0.01723451]
[1724515101771,0.09004,63995.0,63994.0,0.01723451]
[1724515104973,4e-05,63995.0,63994.0,0.01723451]
[1724515105175,0.09004,63995.0,63994.0,0.01723451]
[1724515107670,4e-05,63995.0,63994.0,0.01723451]
[1724515107880,0.09004,63995.0,63994.0,0.01723451]
[1724515109871,0.09027,63995.0,63994.0,0.09533051]
[1724515116885,0.09027,63995.0,63994.0,0.14210811]
[1724515117685,0.09027,63995.0,63994.0,0.1420755]
[1724515118379,0.09027,63995.0,63994.0,0.09533051]
[1724515119574,0.13690307,63995.0,63994.0,0.09533051]
[1724515119774,0.09027,63995.0,63994.0,0.14211264]
[1724515120276,0.13688558,63995.0,63994.0,0.09533051]
[1724515120580,0.09027,63995.0,63994.0,0.09533051]
[1724515121681,0.13695005,63995.0,63994.0,0.09533051]
[1724515122583,0.09027,63995.0,63994.0,0.09533051]
[1724515123178,0.09027,63995.0,63994.0,0.14483051]
[1724515123381,0.09027,63995.0,63994.0,0.19173051]
[1724515124389,0.09027,63995.0,63994.0,0.26973667]
[1724515124584,0.09027,63995.0,63994.0,0.3887243]
[1724515125083,0.09027,63995.0,63994.0,0.38872377]
[1724515125387,0.09027,63995.0,63994.0,0.19173051]
[1724515125778,0.09027,63995.0,63994.0,0.14223051]
[1724515127384,0.09027,63995.0,63994.0,0.50303051]
[1724515127985,0.09027,63995.0,63994.0,0.45613051]
[1724515128382,0.168365,63995.0,63994.0,0.45613051]
[1724515129178,0.168365,63995.0,63994.0,0.09533051]
[1724515129383,0.168365,63995.0,63994.0,0.45613051]
[1724515129892,0.23057422,63995.0,63994.0,0.45613051]
[1724515131692,0.23057422,63995.0,63994.0,0.37803451]
[1724515132395,0.23057422,63995.0,63994.0,0.01723451]
[1724515134492,0.168365,63995.0,63994.0,0.07970797]
[1724515134886,0.168365,63995.0,63994.0,0.07970609]
[1724515135086,0.168365,63995.0,63994.0,0.01723451]
[1724515138895,0.23060695,63995.0,63994.0,0.07970381]
[1724515139600,0.23037695,63995.0,63994.0,0.07970381]
[1724515140303,0.23037695,63995.0,63994.0,0.01723451]
[1724515140797,0.23037695,63995.0,63994.0,0.07970293]
[1724515141498,0.24623,63995.0,63994.0,0.06408749]
[1724515141889,2.14921813,63995.0,63994.0,0.01723451]
[1724515142291,2.07153,63995.0,63994.0,0.01723451]
[1724515142490,2.07153,63995.0,63983.0,0.4088]
[1724515142491,0.078102,63989.0,63987.0,0.06246432]
[1724515142698,0.078102,63989.0,63979.0,0.07800616]
[1724515142699,0.078105,63987.0,63986.0,0.06246432]
[1724515142896,0.078106,63986.0,63985.0,0.06246432]
[1724515143293,0.078106,63986.0,63978.0,0.12530616]
[1724515143294,0.078108,63984.0,63983.0,0.06246432]
[1724515143493,0.168108,63984.0,63983.0,0.06246432]
[1724515144294,0.168148,63984.0,63982.0,0.06262106]
[1724515144497,0.07811,63983.0,63982.0,0.06262106]
[1724515145099,0.07815,63983.0,63982.0,0.06262106]
[1724515145405,0.12476593,63983.0,63982.0,0.00015674]
[1724515145902,0.12476593,63983.0,63982.0,0.01312503]
[1724515145903,0.11076593,63983.0,63982.0,0.01312503]
[1724515146103,0.11076593,63983.0,63982.0,0.00015674]
[1724515146406,0.06415,63983.0,63982.0,0.00015674]
[1724515146608,0.06615,63983.0,63982.0,0.06294834]
[1724515146907,0.1127551,63983.0,63982.0,0.01615674]
[1724515147107,0.06615,63983.0,63982.0,0.01615674]
[1724515150304,0.06615,63983.0,63982.0,0.02964]
[1724515151307,0.00204,63983.0,63982.0,0.15450151]
[1724515151609,0.00204,63983.0,63982.0,0.558551]
[1724515153107,0.00204,63983.0,63982.0,0.468551]
[1724515154509,0.09204,63983.0,63982.0,0.468551]
[1724515156609,0.09204,63983.0,63982.0,0.515551]
[1724515164715,0.09204,63983.0,63982.0,0.468551]
[1724515165515,0.00204,63983.0,63982.0,0.468551]
[1724515165717,0.00023451,63990.0,63989.0,0.078102]
[1724515165718,0.0468401,63990.0,63989.0,0.078102]
[1724515166015,0.06219022,63996.0,63989.0,0.078102]
[1724515166016,0.04660559,63999.0,63989.0,1.11660722]
[1724515166311,0.09,64002.0,63998.0,0.8116]
[1724515166514,0.09,64002.0,63999.0,0.143]
[1724515167114,0.09,64002.0,64001.0,4e-05]
[1724515167421,0.09,64002.0,64001.0,0.06235666]
[1724515167920,0.09,64002.0,64001.0,0.14044466]
[1724515168312,0.09,64002.0,64001.0,0.078128]
[1724515168513,0.09,64006.0,64001.0,0.09004]
[1724515168818,0.09,64006.0,64005.0,0.3608]
[1724515169121,0.09,64006.0,64005.0,0.438883]
[1724515169321,0.09,64006.0,64005.0,0.48562243]
[1724515169819,0.091,64006.0,64005.0,0.48562243]
[1724515170119,0.091,64006.0,64005.0,0.078123]
[1724515170417,0.00023451,64007.0,64005.0,0.48560273]
[1724515170615,0.00023451,64007.0,64006.0,0.078082]
[1724515170813,0.09023451,64007.0,64006.0,0.078082]
[1724515171322,0.09023451,64007.0,64006.0,0.078122]
[1724515171716,0.09423451,64007.0,64006.0,0.078122]
[1724515172519,0.10023451,64007.0,64006.0,0.078122]
[1724515173116,0.10123451,64007.0,64006.0,0.078122]
[1724515176923,1.88123451,64007.0,64006.0,0.078122]
[1724515179721,1.95931451,64007.0,64006.0,4e-05]
[1724515182325,0.078085,64003.0,64002.0,0.3608]
[1724515182627,0.078092,63998.0,63993.0,0.078097]
[1724515182823,0.078092,63998.0,63994.0,0.07833051]
[1724515183023,0.078092,63998.0,63995.0,0.04667973]
[1724515183325,0.09,63996.0,63994.0,0.00023451]
[1724515183720,0.09,63996.0,63994.0,0.00523451]
[1724515183925,0.09,63996.0,63995.0,0.078094]
[1724515184521,0.091,63996.0,63995.0,0.078094]
[1724515185331,0.091,63996.0,63995.0,0.085094]
[1724515185524,0.001,63996.0,63995.0,0.090094]
[1724515186035,0.001,63996.0,63995.0,0.15238397]
[1724515186234,0.002,63996.0,63995.0,0.090094]
[1724515189225,0.002,63996.0,63995.0,0.811694]
[1724515190030,0.002,63996.0,63995.0,0.090094]
[1724515190236,0.002,63996.0,63995.0,0.811694]
[1724515191134,0.002,63996.0,63995.0,0.090094]
[1724515191335,0.002,63996.0,63995.0,0.88966247]
[1724515191928,0.002,63996.0,63995.0,0.811694]
[1724515192443,0.002,63996.0,63995.0,0.88966247]
[1724515192642,0.092,63996.0,63995.0,0.811694]
[1724515194223,0.092,63996.0,63995.0,0.88966247]
[1724515194634,0.002,63996.0,63995.0,1.00769651]
[1724515195226,0.002,63996.0,63995.0,0.92972804]
[1724515196935,0.00223,63996.0,63995.0,0.92972804]
[1724515200653,0.00223,63996.0,63995.0,0.811694]
[1724515200869,0.00223,63996.0,63995.0,0.809194]
[1724515201135,0.00223,63996.0,63995.0,0.92731721]
[1724515204236,0.00223,63996.0,63995.0,0.809194]
[1724515205731,0.00223,63996.0,63995.0,0.3728]
[1724515206437,0.078095,63995.0,63994.0,0.00023451]
[1724515206638,0.078096,63994.0,63993.0,0.0936042]
[1724515206935,1.858096,63994.0,63993.0,0.0936042]
[1724515207444,0.075603,63988.0,63987.0,0.0132466]
[1724515207636,0.075603,63988.0,63986.0,0.06240449]
[1724515208425,4e-05,63987.0,63986.0,0.06240449]
[1724515208630,0.078145,63987.0,63986.0,0.06240449]
[1724515209537,0.078145,63987.0,63986.0,0.07040449]
[1724515210039,0.079145,63987.0,63986.0,0.07040449]
[1724515210239,0.079145,63987.0,63986.0,0.06240449]
[1724515210431,0.080145,63987.0,63986.0,0.06940449]
[1724515212639,0.080145,63987.0,63986.0,0.007]
[1724515215236,0.080145,63987.0,63986.0,0.3678]
[1724515220046,0.080145,63987.0,63986.0,0.007]
[1724515224646,0.080145,63987.0,63986.0,0.085106]
[1724515229352,0.080145,63987.0,63986.0,0.13184022]
[1724515231148,0.12672158,63987.0,63986.0,0.13184022]
[1724515231550,0.04861658,63987.0,63986.0,0.085106]
[1724515231749,0.00204,63987.0,63986.0,0.085106]
[1724515231954,0.04863846,63987.0,63986.0,0.085106]
[1724515232350,0.00204,63987.0,63986.0,0.085106]
[1724515235453,0.00204,63987.0,63986.0,0.14756148]
[1724515235657,0.00204,63987.0,63986.0,0.085106]
[1724515235857,0.00204,63987.0,63986.0,0.14756108]
[1724515236054,0.04873497,63987.0,63986.0,0.085106]
[1724515236259,0.00204,63987.0,63986.0,0.085106]
[1724515236457,0.0487584,63987.0,63986.0,0.27445314]
[1724515236861,0.0487584,63987.0,63986.0,0.19644752]
[1724515237559,0.00204,63987.0,63986.0,0.16320755]
[1724515238264,0.00204,63987.0,63986.0,0.085106]
[1724515238566,0.00204,63987.0,63986.0,0.27409107]
[1724515238754,0.00204,63987.0,63986.0,0.19598952]
[1724515238951,0.04875511,63987.0,63986.0,0.19598952]
[1724515239456,0.00204,63987.0,63986.0,0.19598952]
[1724515240366,0.00023451,63994.0,63986.0,0.19598952]
[1724515240667,0.04669753,64001.0,63993.0,0.907467]
[1724515240859,0.06225623,64004.0,63993.0,0.907467]
[1724515240860,0.04669753,64002.0,64001.0,0.078088]
[1724515241168,0.04669753,64003.0,64002.0,0.078086]
[1724515241356,0.04669753,64006.0,64005.0,0.078083]
[1724515241661,0.3608,64008.0,64003.0,0.06238169]
[1724515241863,0.06225623,64010.0,64007.0,0.04678567]
[1724515242065,0.06225623,64010.0,64000.0,0.3608]
[1724515242066,0.06225623,64011.0,64009.0,0.078078]
[1724515242254,0.14056474,64012.0,64009.0,0.078078]
[1724515243054,0.14056474,64012.0,64011.0,4e-05]
[1724515243267,0.07830851,64012.0,64011.0,4e-05]
[1724515244860,0.08830851,64012.0,64011.0,0.00104]
[1724515245374,0.09930851,64012.0,64011.0,0.00104]
[1724515245571,0.14588691,64012.0,64011.0,0.00104]
[1724515246075,0.08830851,64012.0,64011.0,0.00104]
[1724515246378,0.10130851,64012.0,64011.0,0.00104]
[1724515246874,1.88130851,64012.0,64011.0,0.00104]
[1724515249778,1.88130851,64012.0,64011.0,0.01437399]
[1724515249967,1.88130851,64012.0,64011.0,0.00104]
[1724515254275,1.88130851,64012.0,64011.0,0.37482044]
[1724515254477,1.88130851,64012.0,64011.0,0.36184]
[1724515258582,0.02323451,64012.0,64011.0,0.439915]
[1724515259087,0.02323451,64012.0,64011.0,0.45339102]
[1724515261282,1.80323451,64012.0,64011.0,0.45339102]
[1724515261579,0.023,64012.0,64011.0,0.45339102]
[1724515261782,4e-07,64025.0,64012.0,0.46864]
[1724515261978,0.0465,64028.0,64021.0,0.04663482]
[1724515262285,0.078062,64022.0,64013.0,0.40743482]
[1724515262579,0.0497,64027.0,64021.0,0.3608]
[1724515262781,0.00023432,64024.0,64023.0,0.078061]
[1724515264778,0.00023432,64024.0,64023.0,0.082061]
[1724515265485,0.10995623,64038.0,64032.0,0.078049]
[1724515265675,0.0477,64038.0,64032.0,0.3608]
[1724515265874,1.78,64037.0,64032.0,0.3608]
[1724515266884,1.78,64037.0,64035.0,0.078046]
[1724515267380,1.785,64037.0,64035.0,0.078046]
[1724515267688,0.005,64037.0,64035.0,0.078046]
[1724515267980,0.005,64037.0,64032.0,0.3618]
[1724515267981,0.005,64037.0,64036.0,0.078045]
[1724515268984,0.006,64037.0,64036.0,0.078045]
[1724515269383,0.009,64037.0,64036.0,0.078045]
[1724515269584,0.009,64037.0,64036.0,0.079045]
[1724515270679,0.001,64037.0,64036.0,0.079045]
[1724515270886,0.01,64037.0,64036.0,0.080045]
[1724515271875,0.01,64037.0,64036.0,0.12668447]
[1724515272185,0.01,64037.0,64036.0,0.1266396]
[1724515272483,0.00023432,64041.0,64040.0,0.07804]
[1724515272691,0.00023432,64041.0,64040.0,0.43884]
[1724515273379,0.00023432,64041.0,64040.0,0.43888]
[1724515273774,0.02123432,64041.0,64040.0,0.44088]
[1724515274186,0.02123432,64041.0,64040.0,0.08008]
[1724515277191,0.02123432,64041.0,64040.0,0.54852]
[1724515277488,0.02123432,64041.0,64040.0,0.08008]
[1724515281896,0.02123432,64041.0,64040.0,0.09358474]
[1724515283895,0.02146432,64041.0,64040.0,0.09358474]
[1724515288693,0.02146432,64041.0,64040.0,0.14021675]
[1724515289401,0.02146432,64041.0,64040.0,0.09358474]
[1724515291300,0.02146432,64041.0,64040.0,0.15576209]
[1724515292207,0.02146432,64041.0,64040.0,0.09358474]
[1724515294300,0.02146432,64041.0,64040.0,0.56202474]
[1724515295205,0.02146432,64041.0,64040.0,0.09358474]
[1724515296108,0.02146432,64041.0,64040.0,0.63974643]
[1724515296406,0.02146432,64041.0,64040.0,0.27760111]
[1724515296604,0.02146432,64041.0,64040.0,0.2776855]
[1724515296804,0.02146432,64041.0,64040.0,0.17130643]
[1724515297010,1.80146432,64041.0,64040.0,0.74612641]
[1724515297311,1.80146432,64041.0,64040.0,0.74635749]
[1724515297501,1.80146432,64041.0,64040.0,0.19996472]
[1724515297815,0.02146432,64041.0,64040.0,1.06840472]
[1724515298012,0.02146432,64041.0,64040.0,0.6682644]
[1724515298206,0.02146432,64041.0,64040.0,1.0682644]
[1724515298507,0.02146432,64041.0,64040.0,0.6682644]
[1724515299812,0.02146432,64041.0,64040.0,0.1998244]
[1724515302712,0.02146432,64041.0,64040.0,0.19991082]
[1724515303909,0.02146432,64041.0,64040.0,0.09358474]
[1724515307419,0.09950332,64041.0,64040.0,0.01554474]
[1724515311320,0.09950332,64041.0,64040.0,0.09358474]
[1724515312424,0.16175955,64041.0,64040.0,0.09358474]
[1724515313424,0.16152955,64041.0,64040.0,0.09358474]
[1724515314227,0.09927332,64041.0,64040.0,0.09358474]
[1724515314525,1.04575232,64041.0,64037.0,0.06239753]
[1724515314825,1.04575232,64041.0,64032.0,0.07795667]
[1724515314826,0.3608,64038.0,64035.0,0.04680292]
[1724515315035,0.07787912,64037.0,64035.0,0.04680292]
[1724515315227,0.078046,64035.0,64034.0,0.04680292]
[1724515316127,0.078047,64034.0,64033.0,0.04680292]
[1724515316331,0.14029481,64034.0,64033.0,0.04680292]
[1724515316829,0.14033481,64034.0,64033.0,0.04680292]
[1724515317127,0.078048,64033.0,64031.0,0.04680292]
[1724515317328,0.078053,64029.0,64025.0,0.01335737]
[1724515318021,0.078093,64029.0,64025.0,0.01335737]
[1724515318228,0.14025864,64029.0,64025.0,0.01335737]
[1724515319028,0.078093,64029.0,64025.0,0.01335737]
[1724515319323,0.078093,64029.0,64022.0,0.3608]
[1724515319528,0.14025864,64029.0,64024.0,0.01330174]
[1724515319923,0.081093,64029.0,64022.0,0.3608]
[1724515320539,0.081093,64029.0,64023.0,0.01344178]
[1724515321742,0.14319709,64029.0,64023.0,0.01344178]
[1724515322240,0.081093,64029.0,64023.0,0.01344178]
[1724515322737,0.14319709,64029.0,64023.0,0.01344178]
[1724515323041,0.081093,64029.0,64023.0,0.01344178]
[1724515324444,0.081093,64029.0,64025.0,0.078057]
[1724515324943,0.081093,64029.0,64023.0,0.01344178]
[1724515324944,0.081093,64029.0,64027.0,0.078055]
[1724515325733,0.081093,64029.0,64028.0,0.36103432]
[1724515326648,1.861093,64029.0,64028.0,0.36103432]
[1724515327234,0.081093,64029.0,64028.0,0.36103432]
[1724515327947,0.081323,64029.0,64028.0,0.36103432]
[1724515329042,0.081323,64029.0,64028.0,0.43908932]
[1724515340259,0.081323,64029.0,64028.0,0.48589224]
[1724515340858,0.081323,64029.0,64028.0,0.43908932]
[1724515343252,1.861323,64029.0,64028.0,0.43908932]
[1724515344156,1.861323,64029.0,64028.0,0.50148685]
[1724515346055,0.081323,64029.0,64028.0,0.50148685]
[1724515349863,1.861323,64029.0,64028.0,0.50148685]
[1724515350063,1.861323,64029.0,64028.0,0.59148685]
[1724515351763,1.861323,64029.0,64028.0,0.52908932]
[1724515351966,1.861323,64029.0,64028.0,0.43908932]
[1724515352159,1.861323,64029.0,64028.0,0.36103432]
[1724515352764,1.861323,64029.0,64028.0,0.42344965]
[1724515352966,1.861323,64029.0,64028.0,0.42344971]
[1724515353466,1.861323,64029.0,64028.0,0.36103432]
[1724515357069,1.861323,64029.0,64028.0,0.00023432]
[1724515357769,1.861093,64029.0,64028.0,0.00023432]
[1724515362879,1.861093,64029.0,64028.0,0.09023432]
[1724515364262,1.861093,64029.0,64028.0,0.00023432]
[1724515370881,1.861093,64029.0,64028.0,0.07828832]
[1724515371974,1.861323,64029.0,64028.0,0.07828832]
[1724515373874,1.861323,64029.0,64028.0,0.16828832]
[1724515376676,1.92368447,64029.0,64028.0,0.52908832]
[1724515377080,0.14368447,64029.0,64028.0,0.52908832]
[1724515377277,0.14368447,64029.0,64028.0,0.63825107]
[1724515377278,0.081323,64029.0,64028.0,0.63825107]
[1724515378072,0.081323,64029.0,64028.0,0.71628587]
[1724515378484,0.081323,64029.0,64028.0,0.71614748]
[1724515378679,0.00327,64029.0,64028.0,0.71614748]
[1724515379382,0.00327,64029.0,64028.0,0.52908832]
[1724515379989,0.00327,64029.0,64028.0,0.62698832]
[1724515380782,0.00327,64029.0,64028.0,0.73603209]
[1724515380982,0.00327,64029.0,64028.0,0.62698832]
[1724515381182,0.00327,64029.0,64028.0,0.81401619]
[1724515381880,0.00327,64029.0,64028.0,0.81400099]
[1724515382075,0.05002459,64029.0,64028.0,0.81401216]
[1724515382277,0.00327,64029.0,64028.0,0.81401216]
[1724515382480,0.00327,64029.0,64028.0,0.70500786]
[1724515382890,0.00327,64029.0,64028.0,0.81405486]
[1724515383086,0.00327,64029.0,64028.0,0.70500786]
[1724515384186,0.05002459,64029.0,64028.0,0.62698832]
[1724515385887,0.00327,64029.0,64028.0,0.62698832]
[1724515386087,0.00327,64029.0,64028.0,0.70500786]
[1724515386285,0.00327,64029.0,64028.0,0.73584147]
[1724515386686,0.00327,64029.0,64028.0,0.73584049]
[1724515386887,0.0467542,64033.0,64032.0,0.078051]
[1724515387090,0.0467542,64034.0,64032.0,0.52878965]
[1724515387282,0.04674789,64035.0,64032.0,0.4508]
[1724515387498,0.04674789,64038.0,64036.0,0.078045]
[1724515387786,0.04674789,64037.0,64036.0,0.078045]
[1724515387986,0.078048,64034.0,64032.0,0.51681894]
[1724515388188,0.007,64033.0,64032.0,0.43985]
[1724515388394,0.05474537,64033.0,64032.0,0.43985]
[1724515389185,0.05474537,64033.0,64032.0,0.52985]
[1724515389794,0.04674537,64033.0,64032.0,0.52885]
[1724515389989,0.001,64034.0,64033.0,0.078049]
[1724515390699,0.001,64034.0,64033.0,0.168089]
[1724515391599,0.04674537,64037.0,64034.0,0.078047]
[1724515391792,0.04674537,64037.0,64035.0,0.14040204]
[1724515391988,0.04674537,64036.0,64035.0,0.14040201]
[1724515392188,0.168045,64037.0,64035.0,0.078047]
[1724515392992,0.168045,64037.0,64036.0,4e-05]
[1724515393391,0.177045,64037.0,64036.0,4e-05]
[1724515393898,0.178045,64037.0,64036.0,4e-05]
[1724515394394,0.168045,64037.0,64036.0,4e-05]
[1724515394590,0.178045,64037.0,64036.0,0.00104]
[1724515395591,0.179045,64037.0,64036.0,0.00204]
[1724515398205,0.22578117,64037.0,64036.0,0.00204]
[1724515398593,0.179045,64037.0,64036.0,0.00204]
[1724515399202,0.089045,64037.0,64036.0,0.00204]
[1724515399593,0.13578678,64037.0,64036.0,0.00204]
[1724515400100,0.13578678,64037.0,64036.0,0.36284]
[1724515401093,0.13578678,64037.0,64036.0,0.45284]
[1724515401298,0.13578678,64037.0,64036.0,0.51519501]
[1724515402492,0.089045,64037.0,64036.0,0.530886]
[1724515402705,0.13578678,64037.0,64036.0,0.530886]
[1724515402904,0.089045,64037.0,64036.0,0.530886]
[1724515404501,0.05775706,64037.0,64036.0,0.530886]
[1724515404796,0.011,64037.0,64036.0,0.530886]
[1724515405199,0.011,64037.0,64036.0,0.60885494]
[1724515405405,0.011,64037.0,64036.0,0.71670196]
[1724515406297,0.011,64037.0,64036.0,0.60885494]
[1724515406501,0.089044,64037.0,64036.0,0.36284]
[1724515406894,0.089044,64037.0,64036.0,0.42522411]
[1724515407302,0.089044,64037.0,64036.0,0.42522536]
[1724515407604,0.15140547,64037.0,64036.0,0.06442536]
[1724515407803,0.15140547,64037.0,64036.0,0.00204]
[1724515408003,0.089044,64037.0,64036.0,0.42522536]
[1724515408199,0.089044,64037.0,64036.0,0.36284]
[1724515409201,0.15140547,64037.0,64036.0,0.36284]
[1724515409399,0.15140547,64037.0,64036.0,0.00204]
[1724515409601,0.089044,64037.0,64036.0,0.00204]
[1724515409802,0.15139674,64037.0,64036.0,0.06443394]
[1724515410105,0.089044,64037.0,64036.0,0.06443394]
[1724515410903,0.15139808,64037.0,64036.0,0.06443394]
[1724515411103,0.089044,64037.0,64036.0,0.06443394]
[1724515411611,0.15140134,64037.0,64036.0,0.06443394]
[1724515411814,0.089044,64037.0,64036.0,0.06443394]
[1724515412004,0.15140197,64037.0,64036.0,0.00204]
[1724515412204,0.1514033,64037.0,64036.0,0.00204]
[1724515412615,0.1966033,64037.0,64036.0,0.00204]
[1724515413208,1.002724,64037.0,64029.0,0.07796894]
[1724515413511,0.09,64029.0,64028.0,0.04704798]
[1724515413715,0.27141413,64029.0,64028.0,0.00023432]
[1724515413913,0.36641413,64029.0,64028.0,0.00023432]
[1724515414115,0.45972742,64029.0,64028.0,0.00023432]
[1724515414306,0.36645413,64029.0,64028.0,0.00023432]
[1724515414707,0.36945413,64029.0,64028.0,0.00023432]
[1724515415309,0.344148,64029.0,64028.0,0.00023432]
[1724515415610,0.344378,64029.0,64028.0,0.00023432]
[1724515416012,0.42226887,64029.0,64028.0,0.00023432]
[1724515416208,0.344378,64029.0,64028.0,0.00023432]
[1724515422024,0.40657988,64029.0,64028.0,0.00023432]